bitfinex-derivatives/quotes_ETHF0:USTF0_20250824
["timestamp","ask_amount","ask_price","bid_price","bid_amount"]
[1756029619285,19.85579821,4775.0,4774.9,1.35243024]
[1756029620380,19.85579821,4775.0,4774.9,1.58683024]
[1756029620684,19.85679821,4775.0,4774.9,2.68193024]
[1756029621785,19.85679821,4775.0,4774.9,2.34473024]
[1756029622286,19.85679821,4775.0,4774.9,2.68193024]
[1756029623087,19.85679821,4775.0,4774.9,1.35243024]
[1756029623383,19.85679821,4775.0,4774.9,1.29603024]
[1756029628889,19.85979821,4775.0,4774.9,1.91483024]
[1756029630194,19.85979821,4775.0,4774.9,1.76643024]
[1756029630587,19.85979821,4775.0,4774.9,1.53043024]
[1756029632989,0.82279821,4775.0,4774.9,1.29603024]
[1756029633186,19.85979821,4775.0,4774.9,1.29603024]
[1756029633691,0.82279821,4775.0,4774.9,1.29603024]
[1756029633893,19.85979821,4775.0,4774.9,1.29603024]
[1756029634092,19.86079821,4775.0,4774.9,1.29603024]
[1756029635392,19.86079821,4775.0,4774.9,1.53043024]
[1756029635792,19.86079821,4775.0,4774.9,1.76643024]
[1756029635993,19.86079821,4775.0,4774.9,1.29603024]
[1756029636591,21.36767334,4775.0,4774.9,1.29603024]
[1756029637193,43.03947334,4775.0,4774.9,1.52333024]
[1756029637395,62.07747334,4775.0,4774.9,1.52333024]
[1756029638493,62.07747334,4775.0,4774.9,1.29603024]
[1756029638898,60.57059821,4775.0,4774.9,1.29603024]
[1756029639498,0.42001,4774.6,4774.4,0.15849317]
[1756029639699,49.89179821,4774.5,4774.4,0.15849317]
[1756029640402,30.85379821,4774.5,4774.4,0.38579317]
[1756029640699,30.85379821,4774.5,4774.4,1.10689317]
[1756029640900,49.89179821,4774.5,4774.4,1.10689317]
[1756029641196,30.85379821,4774.5,4774.4,1.47509317]
[1756029641401,49.89179821,4774.5,4774.4,1.47509317]
[1756029641996,49.89179821,4774.5,4774.4,0.38579317]
[1756029642297,51.39582515,4774.5,4774.4,0.15849317]
[1756029643403,49.89179821,4774.5,4774.4,0.15849317]
[1756029643699,49.89179821,4774.5,4774.4,0.38579317]
[1756029644697,30.85379821,4774.5,4774.4,0.38579317]
[1756029644903,49.89179821,4774.5,4774.4,0.15849317]
[1756029645599,49.89179821,4774.5,4774.4,0.38579317]
[1756029646202,49.89179821,4774.5,4774.4,0.62229317]
[1756029646402,49.89179821,4774.5,4774.4,0.38579317]
[1756029647198,51.76666196,4774.5,4774.4,1.47509317]
[1756029648797,32.72766196,4774.5,4774.4,1.47509317]
[1756029649001,51.76666196,4774.5,4774.4,1.47509317]
[1756029649502,0.1464,4774.4,4774.1,0.09635223]
[1756029649706,1.3493,4774.2,4774.1,0.62345223]
[1756029649903,2.01705696,4774.2,4774.1,0.62345223]
[1756029650201,2.43609696,4774.2,4774.1,0.62345223]
[1756029651701,2.43609696,4774.2,4774.1,1.41295223]
[1756029654604,1.61789696,4774.2,4774.0,1.46622744]
[1756029654805,21.05605696,4774.1,4774.0,1.46622744]
[1756029657005,22.56276642,4774.1,4774.0,1.46622744]
[1756029659103,1.76841,4773.5,4773.4,0.15652546]
[1756029659310,21.47516696,4773.5,4773.4,0.15652546]
[1756029659505,62.27516696,4773.5,4773.4,0.15652546]
[1756029660808,43.23616696,4773.5,4773.4,0.15652546]
[1756029661113,43.23616696,4773.5,4773.4,0.86282546]
[1756029661114,62.27516696,4773.5,4773.4,0.86282546]
[1756029662413,62.27516696,4773.5,4773.4,0.15652546]
[1756029663912,62.27516696,4773.5,4773.4,0.86282546]
[1756029664109,62.27616696,4773.5,4773.4,1.28682546]
[1756029664311,21.47616696,4773.5,4773.4,1.28682546]
[1756029664911,21.05705696,4773.5,4773.4,1.43332546]
[1756029666618,21.05705696,4773.5,4773.4,0.48222546]
[1756029666817,21.05705696,4773.5,4773.4,0.87342546]
[1756029667512,21.05705696,4773.5,4773.4,0.31282546]
[1756029667814,21.05705696,4773.5,4773.4,0.15652546]
[1756029668911,21.05955696,4773.5,4773.4,1.11192546]
[1756029669312,21.05955696,4773.5,4773.4,0.88302546]
[1756029669613,21.05955696,4773.5,4773.4,0.54772546]
[1756029670015,21.05955696,4773.5,4773.4,0.88302546]
[1756029670916,21.05955696,4773.5,4773.4,1.46562546]
[1756029671319,21.05955696,4773.5,4773.4,1.88474546]
[1756029671917,21.05955696,4773.5,4773.4,1.46562546]
[1756029672504,20.25355696,4773.5,4773.4,1.46562546]
[1756029672716,21.03285696,4773.5,4773.4,1.46562546]
[1756029672916,21.03285696,4773.5,4773.4,1.26892546]
[1756029673117,21.03285696,4773.5,4773.4,1.46562546]
[1756029673919,20.48015696,4773.5,4773.4,1.46562546]
[1756029675019,20.80865696,4773.5,4773.4,1.46562546]
[1756029675518,21.03285696,4773.5,4773.4,1.46562546]
[1756029676013,1.43895696,4773.5,4773.4,1.46562546]
[1756029676319,21.03165696,4773.5,4773.4,1.46562546]
[1756029677318,21.03165696,4773.5,4773.4,0.15652546]
[1756029677518,21.03165696,4773.5,4773.4,0.88302546]
[1756029677713,21.03165696,4773.5,4773.4,1.11192546]
[1756029678619,21.03165696,4773.5,4773.4,0.15652546]
[1756029680720,1.74309,4772.6,4772.5,0.16053571]
[1756029680915,21.44984696,4772.6,4772.5,0.16053571]
[1756029688621,1.3239,4771.7,4771.6,0.15429727]
[1756029688929,21.03265696,4771.7,4771.6,0.15429727]
[1756029689227,0.5336,4770.9,4770.8,0.9554]
[1756029689426,20.24235696,4770.9,4770.8,0.6201]
[1756029689626,21.03265696,4770.9,4770.8,0.6201]
[1756029690225,1.3239,4770.7,4770.6,0.38433285]
[1756029690427,21.04965696,4770.7,4770.6,0.38433285]
[1756029690725,21.04965696,4770.7,4770.6,0.54063285]
[1756029691223,21.04965696,4770.7,4770.6,0.93253285]
[1756029691431,21.04965696,4770.7,4770.6,1.11083285]
[1756029691629,21.04965696,4770.7,4770.6,1.48563285]
[1756029699134,21.04965696,4770.7,4770.6,1.11083285]
[1756029701534,21.04965696,4770.7,4770.6,0.77553285]
[1756029702035,21.04965696,4770.7,4770.6,0.15543285]
[1756029708237,21.04965696,4770.7,4770.6,1.09623285]
[1756029708546,21.04965696,4770.7,4770.6,1.46763285]
[1756029709545,0.66775696,4770.7,4770.6,1.46763285]
[1756029709749,1.55065696,4770.7,4770.6,1.46763285]
[1756029710447,1.21995696,4770.7,4770.6,1.46763285]
[1756029710650,1.78485696,4770.7,4770.6,1.46763285]
[1756029711449,0.66775696,4770.7,4770.6,1.46763285]
[1756029711647,0.66775696,4770.7,4770.6,5.48853285]
[1756029712037,1.3382,4771.7,4771.6,1.3122]
[1756029712344,1.3382,4771.7,4771.6,1.73147]
[1756029712842,0.2211,4771.7,4771.6,1.73147]
[1756029713145,0.7864,4772.1,4772.0,1.73144]
[1756029713447,1.1171,4772.1,4772.0,1.73144]
[1756029713647,1.0075,4772.1,4772.0,1.73144]
[1756029714350,1.3382,4772.1,4772.0,1.73144]
[1756029714643,1.3382,4772.1,4772.0,1.51144]
[1756029714850,1.3382,4772.1,4772.0,1.73144]
[1756029715241,1.3382,4772.1,4772.0,1.51144]
[1756029717044,1.3382,4772.1,4772.0,1.73144]
[1756029717749,0.2211,4772.1,4772.0,1.73144]
[1756029718051,0.3791,4772.4,4772.3,1.50991]
[1756029718246,0.3791,4772.4,4772.3,1.73141]
[1756029718552,20.1651,4772.9,4772.8,1.51137]
[1756029718747,1.1171,4772.9,4772.8,1.51137]
[1756029718954,1.3382,4772.9,4772.8,1.51137]
[1756029719153,1.0075,4772.9,4772.8,1.73137]
[1756029719351,0.2211,4772.9,4772.8,1.73137]
[1756029719747,1.3382,4772.9,4772.8,1.73137]
[1756029719947,1.3382,4772.9,4772.8,1.51137]
[1756029720353,0.3791,4772.9,4772.8,1.73137]
[1756029720553,0.2211,4772.9,4772.8,1.73137]
[1756029720747,0.9438,4773.2,4773.1,1.73134]
[1756029720954,1.3382,4773.2,4773.1,1.73134]
[1756029721752,0.2211,4773.5,4773.1,1.04786]
[1756029721950,0.3791,4773.8,4773.7,1.73129]
[1756029722455,1.3382,4773.8,4773.7,1.51129]
[1756029722851,1.0075,4774.1,4774.0,0.93856]
[1756029723049,1.3382,4774.1,4774.0,1.51126]
[1756029723346,0.2211,4774.1,4774.0,1.73126]
[1756029723657,0.5647,4774.4,4774.3,0.93854]
[1756029723854,1.3382,4774.4,4774.3,1.73124]
[1756029724048,2.01558426,4774.4,4774.3,1.73124]
[1756029724755,0.2211,4774.4,4774.3,1.73124]
[1756029724957,20.3932,4774.8,4774.7,1.2897]
[1756029725154,21.06991881,4774.8,4774.7,1.5112]
[1756029725547,21.06991881,4774.8,4774.7,1.7312]
[1756029725752,21.06937074,4774.8,4774.7,1.0922]
[1756029726052,21.07337074,4774.8,4774.7,1.0922]
[1756029726957,1.3104,4774.4,4774.3,1.0922]
[1756029727153,20.3684,4774.4,4774.3,1.0922]
[1756029727655,0.1497,4773.6,4773.5,0.7052]
[1756029727955,0.5301,4773.2,4773.1,0.64864]
[1756029728158,1.3104,4773.2,4773.1,0.64864]
[1756029728548,1.3104,4773.2,4773.1,1.51134]
[1756029728853,1.3104,4773.2,4773.1,1.74944]
[1756029729553,0.217,4773.8,4773.6,0.41909]
[1756029729751,1.3104,4773.8,4773.7,1.74939]
[1756029731151,0.6022,4774.1,4774.0,0.65846]
[1756029731353,1.27729329,4774.1,4774.0,1.74936]
[1756029731655,1.98549329,4774.1,4774.0,1.74936]
[1756029734062,0.8309,4774.4,4774.3,1.74934]
[1756029734364,1.98572467,4774.4,4774.3,1.51124]
[1756029735056,1.98572467,4774.4,4774.3,1.74934]
[1756029736657,0.67532467,4774.4,4774.3,1.74934]
[1756029736857,0.217,4774.7,4774.6,0.41901]
[1756029737058,0.89269725,4774.7,4774.6,1.51121]
[1756029737250,0.89269725,4774.7,4774.6,1.74931]
[1756029737655,1.3104,4775.0,4774.9,1.74928]
[1756029737863,1.98630806,4775.0,4774.9,1.74928]
[1756029738462,0.67590806,4775.0,4774.9,1.74928]
[1756029738868,1.27330806,4775.0,4774.9,1.74928]
[1756029739058,1.98630806,4775.0,4774.9,1.51118]
[1756029739254,1.45140806,4775.0,4774.9,1.74928]
[1756029739459,1.04460806,4775.0,4774.9,1.74928]
[1756029739858,1.98630806,4775.0,4774.9,1.74928]
[1756029740157,1.98630806,4775.0,4774.9,1.51118]
[1756029740760,0.67590806,4775.0,4774.9,1.74928]
[1756029742362,0.09998,4775.9,4775.8,1.3635]
[1756029742553,0.09998,4775.9,4775.8,1.7492]
[1756029742756,1.41038,4775.9,4775.8,1.2717]
[1756029743070,0.5301,4775.5,4775.4,0.41894]
[1756029743256,1.3104,4775.5,4775.4,0.41894]
[1756029743866,0.5301,4775.3,4775.2,0.41895]
[1756029744060,1.3104,4775.3,4775.2,0.41895]
[1756029745372,1.3104,4775.3,4775.2,0.71445]
[1756029745569,1.3104,4775.3,4775.2,1.51115]
[1756029746273,2.81754996,4775.3,4775.2,1.51115]
[1756029747362,1.3104,4775.3,4775.2,1.51115]
[1756029748167,1.3104,4775.3,4775.2,1.74925]
[1756029748367,0.9806,4775.3,4775.2,0.61747038]
[1756029748667,1.3104,4775.3,4775.2,0.94592038]
[1756029748869,1.3104,4775.3,4775.2,0.41895]
[1756029751473,1.1587,4775.2,4775.1,0.3769]
[1756029751671,1.1587,4775.2,4775.1,0.93917]
[1756029751672,1.3104,4775.2,4775.1,0.93917]
[1756029752365,1.882905,4775.7,4775.6,0.64822]
[1756029752565,19.63648,4775.9,4775.8,0.4189]
[1756029752769,0.55048,4775.9,4775.8,0.9391]
[1756029752971,0.55048,4775.9,4775.8,1.0585]
[1756029753172,0.31698,4775.9,4775.8,1.0585]
[1756029753565,1.81912598,4775.9,4775.8,1.0585]
[1756029753971,2.05262598,4775.9,4775.8,1.0585]
[1756029754171,2.58272598,4775.9,4775.8,1.0585]
[1756029754370,3.56001791,4775.9,4775.8,0.9391]
[1756029754764,3.23021791,4775.9,4775.8,0.9391]
[1756029754962,3.23021791,4775.9,4775.8,1.0585]
[1756029755374,2.46661791,4775.9,4775.8,1.0585]
[1756029755570,0.74747193,4775.9,4775.8,1.0585]
[1756029756274,0.96447193,4775.9,4775.8,1.0585]
[1756029757570,1.50337193,4775.9,4775.8,1.0585]
[1756029757776,2.09357193,4775.9,4775.8,0.9391]
[1756029758665,1.74197193,4775.9,4775.8,1.0579]
[1756029758866,0.96447193,4775.9,4775.8,1.0579]
[1756029759065,0.74747193,4775.9,4775.8,1.0579]
[1756029759478,0.74747193,4775.9,4775.8,1.23199994]
[1756029759678,0.74747193,4775.9,4775.8,5.23199994]
[1756029760174,0.74747193,4775.9,4775.8,5.23197059]
[1756029760571,1.93e-06,4775.9,4775.8,5.23197059]
[1756029760771,0.217,4776.3,4776.2,1.06717]
[1756029761877,0.4461,4776.5,4776.4,1.06715]
[1756029762776,0.5923,4776.5,4776.4,1.06715]
[1756029764675,0.4461,4776.5,4776.4,1.06715]
[1756029765069,0.5923,4776.5,4776.4,1.06715]
[1756029765270,1.3406,4776.5,4776.4,1.06715]
[1756029765476,1.3406,4776.5,4776.4,0.94835]
[1756029769484,1.3406,4776.5,4776.4,0.72055]
[1756029769867,1.3406,4776.5,4776.4,0.41885]
[1756029770072,5.3406,4776.5,4775.7,0.1424]
[1756029770278,0.5429,4775.9,4775.8,0.17422561]
[1756029770577,0.5429,4775.9,4775.8,0.41891]
[1756029771075,1.3406,4775.9,4775.8,0.41891]
[1756029771679,1.3406,4775.9,4775.8,0.56131]
[1756029772576,1.97916506,4775.9,4775.8,0.56131]
[1756029773375,1.3406,4775.9,4775.8,0.56131]
[1756029774573,1.99884509,4775.9,4775.8,0.56131]
[1756029775881,1.3406,4775.9,4775.8,0.56131]
[1756029777278,1.3406,4775.9,4775.8,0.89514944]
[1756029777479,1.3406,4775.9,4775.8,1.12294944]
[1756029778881,1.3406,4775.9,4775.8,0.59344944]
[1756029779081,1.3406,4775.9,4775.8,0.41891]
[1756029779470,1.99949537,4775.9,4775.8,0.41891]
[1756029789785,1.99949537,4775.9,4775.8,0.93571]
[1756029789991,1.10499537,4775.9,4775.8,1.22828318]
[1756029790689,0.65889537,4775.9,4775.8,1.22828318]
[1756029790889,1.4318027,4778.7,4775.8,1.22828318]
[1756029790890,0.2365,4776.3,4776.2,0.79377]
[1756029791086,0.2206,4776.6,4776.5,0.79375]
[1756029791390,0.4571,4776.6,4776.5,1.05355]
[1756029791784,0.4571,4776.6,4776.5,1.22818136]
[1756029792087,1.3232,4776.6,4776.5,1.11028136]
[1756029792487,1.3232,4776.6,4776.5,1.11028315]
[1756029794895,1.3232,4776.6,4775.8,0.41891]
[1756029795094,0.5282,4776.0,4775.9,0.59353941]
[1756029795389,1.3232,4776.0,4775.9,0.59353941]
[1756029795588,1.3232,4776.0,4775.9,1.29913941]
[1756029795787,0.4571,4776.0,4775.9,1.41703941]
[1756029796494,0.2365,4776.0,4775.9,1.41703941]
[1756029796791,0.2206,4776.3,4776.2,0.79378]
[1756029796989,0.8661,4776.8,4776.7,1.47533]
[1756029797192,0.8661,4776.8,4776.7,1.71383]
[1756029798892,1.3232,4776.8,4776.7,1.71383]
[1756029799085,0.9853,4776.8,4776.7,1.71383]
[1756029799293,1.3232,4776.8,4776.7,1.71383]
[1756029800295,1.3232,4776.8,4776.7,0.41883]
[1756029800599,1.3232,4776.8,4776.7,0.56933]
[1756029800799,1.3232,4776.8,4776.7,1.47533]
[1756029800992,1.3232,4776.8,4776.7,1.71383]
[1756029803000,1.97508998,4776.8,4776.7,1.71383]
[1756029803395,1.97508998,4776.8,4776.7,0.41883]
[1756029803793,1.18008998,4776.8,4775.4,0.2385]
[1756029804094,1.04691,4777.6,4775.5,0.56944]
[1756029804095,1.3232,4775.6,4775.5,0.56944]
[1756029804299,1.97508998,4775.6,4775.5,0.56944]
[1756029806294,1.97508998,4775.6,4775.5,0.41894]
[1756029807899,1.97508998,4775.6,4775.5,1.71394]
[1756029808892,1.97508998,4775.6,4775.5,1.12454]
[1756029809398,1.97508998,4775.6,4775.5,0.41894]
[1756029812093,1.97508998,4775.6,4774.7,0.7697]
[1756029812094,0.5282,4775.4,4775.3,0.41895]
[1756029812294,1.97508998,4775.4,4775.3,0.41895]
[1756029813499,1.97508998,4775.4,4775.3,0.94535]
[1756029813707,1.97508998,4775.4,4775.3,1.71505]
[1756029813708,1.63718998,4775.4,4775.3,1.71505]
[1756029813899,0.65188998,4775.4,4775.3,1.71505]
[1756029814102,0.65188998,4775.4,4775.3,1.88948918]
[1756029814302,0.6125,4775.8,4775.7,1.71502]
[1756029814503,1.26661464,4775.8,4775.7,1.71502]
[1756029815097,0.65411464,4775.8,4775.7,1.88939854]
[1756029815698,0.6125,4776.1,4776.0,0.4189]
[1756029815905,1.63938004,4776.1,4776.0,1.715]
[1756029816105,1.97728004,4776.1,4776.0,1.715]
[1756029820513,1.97728004,4776.1,4776.0,1.97963338]
[1756029820716,1.63938004,4776.1,4776.0,1.97963338]
[1756029820910,0.65408004,4776.1,4776.0,2.00053338]
[1756029821115,0.3781,4776.5,4776.4,1.72406]
[1756029821318,1.3346,4776.5,4776.4,1.98869338]
[1756029821610,0.65411939,4776.5,4776.4,1.98869338]
[1756029821911,0.4473,4776.8,4776.7,1.3052]
[1756029822104,1.10141538,4776.8,4776.7,1.56983338]
[1756029822311,42.01740521,4778.9,4776.7,1.56983338]
[1756029822312,0.4473,4777.2,4777.1,0.4188]
[1756029822508,0.2285,4777.2,4777.1,1.98863338]
[1756029823116,0.9758,4777.5,4777.4,0.79958]
[1756029823319,1.3346,4777.5,4777.4,1.55361338]
[1756029823507,1.3346,4777.5,4777.4,1.07421338]
[1756029824214,1.3346,4777.5,4777.4,1.40411338]
[1756029825712,1.3346,4777.5,4777.4,1.75401338]
[1756029826417,1.3346,4777.5,4777.4,1.98861338]
[1756029827610,0.7433,4777.5,4777.4,1.98861338]
[1756029827819,1.3346,4777.8,4777.7,0.95905]
[1756029828011,1.3346,4777.8,4777.7,1.98858338]
[1756029828915,1.3346,4777.8,4777.7,1.98787463]
[1756029829120,1.3346,4777.8,4777.7,1.75327463]
[1756029829326,1.3346,4777.8,4777.7,1.55285854]
[1756029830115,1.3346,4777.8,4777.7,0.68265854]
[1756029830922,1.3346,4777.8,4777.7,1.98785854]
[1756029831315,0.9758,4777.8,4777.7,1.98785854]
[1756029831726,1.3346,4777.8,4777.7,1.98785854]
[1756029832119,0.9758,4777.8,4777.7,1.98785854]
[1756029832618,0.7433,4777.8,4777.7,1.98785854]
[1756029833016,1.3346,4777.8,4777.7,1.98785854]
[1756029834727,1.3346,4777.8,4777.7,1.75325854]
[1756029835630,1.3346,4777.8,4777.7,1.55285854]
[1756029835829,1.98491897,4777.8,4777.7,1.55285854]
[1756029836424,1.98491897,4777.8,4777.7,0.26390854]
[1756029838631,1.98491897,4777.8,4777.6,0.41876]
[1756029838830,1.98491897,4777.7,4777.6,0.41876]
[1756029839028,1.98491897,4777.7,4777.6,0.68248528]
[1756029842525,1.98491897,4777.7,4777.6,0.26372528]
[1756029843029,1.3346,4777.5,4777.4,0.41878]
[1756029843230,1.98323902,4777.5,4777.4,0.41878]
[1756029845130,1.98323902,4777.5,4777.4,0.74868]
[1756029845331,1.98323902,4777.5,4777.4,0.41878]
[1756029847132,0.5288,4777.2,4777.1,0.41881]
[1756029847434,1.3341,4777.2,4777.1,0.41881]
[1756029847639,1.40233902,4777.2,4777.1,1.70161]
[1756029847942,0.64863902,4777.2,4777.1,1.70161]
[1756029848132,1.3341,4777.4,4777.3,1.70159]
[1756029848327,1.98380477,4777.4,4777.3,1.70159]
[1756029852543,1.98380477,4777.4,4777.3,1.48159]
[1756029852935,1.98380477,4777.4,4777.3,1.70159]
[1756029855046,1.98380477,4777.4,4777.3,1.96407514]
[1756029857549,1.98380477,4777.4,4777.3,1.70159]
[1756029857750,1.98380477,4777.4,4777.3,1.96405787]
[1756029858450,0.64970477,4777.4,4777.3,1.70159]
[1756029858642,0.64970477,4777.4,4777.3,2.13910054]
[1756029861857,1.98380477,4777.4,4777.3,2.13910054]
[1756029863257,1.98380477,4777.4,4777.3,0.85630054]
[1756029864056,1.98380477,4777.4,4777.3,1.71910054]
[1756029864360,1.98380477,4777.4,4777.3,2.13910054]
[1756029865360,1.98380477,4777.4,4777.3,2.13918678]
[1756029865959,1.98380477,4777.4,4777.3,1.91918678]
[1756029867061,1.10200477,4777.4,4777.3,2.13918678]
[1756029867555,1.10200477,4777.4,4777.3,1.70159]
[1756029867762,1.10200477,4777.4,4777.3,2.13929614]
[1756029867954,1.40340477,4777.4,4777.3,2.13929614]
[1756029868149,1.40340477,4777.4,4777.3,2.13930449]
[1756029868354,1.75640477,4777.4,4777.3,2.13930449]
[1756029868551,1.98380477,4777.4,4777.3,2.13930449]
[1756029868761,1.40340477,4777.4,4777.3,2.13930449]
[1756029869662,1.98380477,4777.4,4777.3,2.13930449]
[1756029870360,1.98380477,4777.4,4777.3,1.71930449]
[1756029870562,1.98380477,4777.4,4777.3,1.71935465]
[1756029870859,1.98380477,4777.4,4777.3,1.96511892]
[1756029872056,1.75640477,4777.4,4777.3,1.96511892]
[1756029872257,1.10200477,4777.4,4777.3,1.96511892]
[1756029874164,1.10200477,4777.4,4777.3,1.9652403]
[1756029874365,1.10200477,4777.4,4777.3,2.14051819]
[1756029875160,1.24970477,4777.4,4777.3,1.9652403]
[1756029875368,1.10200477,4777.4,4777.3,2.14059115]
[1756029875558,1.10200477,4777.4,4777.3,1.9652403]
[1756029875758,1.98380477,4777.4,4777.3,1.9652403]
[1756029876258,1.98380477,4777.4,4777.3,2.14059364]
[1756029876453,1.98380477,4777.4,4777.3,1.9652403]
[1756029877063,1.98380477,4777.4,4777.3,0.9019403]
[1756029877465,1.98380477,4777.4,4777.3,0.68157844]
[1756029877969,1.98380477,4777.4,4777.3,0.68157536]
[1756029878464,1.98380477,4777.4,4777.3,1.26427536]
[1756029878770,1.98380477,4777.4,4777.3,1.61037536]
[1756029879669,1.98380477,4777.4,4777.3,1.78574692]
[1756029879967,1.98380477,4777.4,4777.3,2.16624692]
[1756029880275,1.99520477,4777.4,4777.3,2.16624692]
[1756029880575,1.40340477,4777.4,4777.3,1.90346156]
[1756029882169,1.99840477,4777.4,4777.3,1.90346156]
[1756029882763,1.10200477,4777.4,4777.3,1.90346156]
[1756029882963,0.87630477,4777.4,4777.3,1.90346156]
[1756029883173,0.64970477,4777.4,4777.3,1.90346156]
[1756029883369,0.88730477,4777.4,4777.3,1.90346156]
[1756029883669,1.78190477,4777.4,4777.3,1.90346156]
[1756029883970,2.02070477,4777.4,4777.3,1.90346156]
[1756029884263,2.02070477,4777.4,4777.3,1.47498048]
[1756029884471,2.02070477,4777.4,4777.3,1.32228048]
[1756029884862,2.02070477,4777.4,4777.3,1.47498048]
[1756029885070,2.02070477,4777.4,4777.3,1.67568048]
[1756029885262,2.02070477,4777.4,4777.3,1.90348048]
[1756029886070,2.02070477,4777.4,4777.3,1.67568048]
[1756029886267,2.02070477,4777.4,4777.3,1.32228048]
[1756029886570,2.02070477,4777.4,4777.3,0.59418048]
[1756029887369,2.02070477,4777.4,4777.3,0.41879]
[1756029887672,2.02070477,4777.4,4777.3,0.59422928]
[1756029887970,2.02070477,4777.4,4777.3,0.59424107]
[1756029890174,2.02070477,4777.4,4777.3,0.17545107]
[1756029891965,0.7772,4776.4,4776.2,0.41889]
[1756029892171,2.02070477,4776.3,4776.2,0.41889]
[1756029892367,2.02070477,4776.3,4776.2,0.59430847]
[1756029893373,2.02070477,4776.3,4776.2,0.41889]
[1756029895285,2.02070477,4776.3,4776.2,1.00159]
[1756029895476,2.02070477,4776.3,4776.2,0.41889]
[1756029896071,2.02070477,4776.3,4776.2,1.00159]
[1756029896269,2.02070477,4776.3,4776.2,1.14699]
[1756029897179,2.02070477,4776.3,4776.2,0.41889]
[1756029897575,2.02070477,4776.3,4776.2,1.00159]
[1756029897777,2.02070477,4776.3,4776.2,1.14699]
[1756029899177,2.02070477,4776.3,4776.2,0.41889]
[1756029899378,2.02070477,4776.3,4776.2,0.64609]
[1756029899579,2.02070477,4776.3,4776.2,1.14699]
[1756029900680,2.02070477,4776.3,4776.2,1.50039]
[1756029900984,0.64970477,4776.3,4776.2,1.72819]
[1756029901285,0.9045,4777.0,4776.9,0.64603]
[1756029901581,0.5483,4776.3,4776.2,1.50039]
[1756029901773,2.05269863,4776.3,4776.2,1.50039]
[1756029902181,2.05269863,4776.3,4776.2,0.41889]
[1756029903883,0.9757,4775.8,4775.7,0.1454]
[1756029904083,2.05338989,4775.8,4775.5,0.5562]
[1756029904380,1.371,4775.7,4775.3,0.41897]
[1756029904585,1.371,4775.4,4775.3,0.41897]
[1756029904781,2.05333139,4775.4,4775.3,0.41897]
[1756029905282,2.05333139,4775.4,4775.3,1.00167]
[1756029905688,2.05333139,4775.4,4775.3,1.14707]
[1756029906189,2.05333139,4775.4,4775.3,1.50047]
[1756029907488,1.371,4775.4,4775.3,0.41897]
[1756029907681,2.05289915,4775.4,4775.3,0.41897]
[1756029908291,1.371,4775.4,4775.3,0.41897]
[1756029908689,2.05280729,4775.4,4774.9,0.5445]
[1756029908888,1.3254,4775.0,4774.9,0.56901]
[1756029909590,1.3254,4775.0,4774.9,1.13981]
[1756029910892,0.5464,4775.0,4774.4,0.2352]
[1756029911089,0.5464,4774.7,4774.6,0.7208]
[1756029911291,1.3254,4774.7,4774.6,1.34023]
[1756029911688,1.3254,4774.7,4774.6,1.49233]
[1756029911997,1.3254,4774.7,4774.6,1.72753]
[1756029915495,0.4513,4774.7,4774.6,1.72753]
[1756029915697,0.8741,4775.1,4775.0,0.9478]
[1756029915899,1.55541578,4775.1,4775.0,1.7275]
[1756029916298,2.00671578,4775.1,4775.0,1.7275]
[1756029917600,0.68131578,4775.1,4775.0,1.7275]
[1756029918101,1.76801578,4775.1,4775.0,1.7275]
[1756029918396,2.00671578,4775.1,4775.0,1.7275]
[1756029922104,2.00671578,4775.1,4775.0,0.6457]
[1756029922496,2.00671578,4775.1,4774.7,0.3441]
[1756029922698,0.7024,4774.5,4774.4,0.56905]
[1756029923003,1.3254,4774.5,4774.4,0.59407964]
[1756029923194,1.22879044,4774.5,4774.3,0.41905]
[1756029923394,1.0962,4773.9,4773.8,0.4191]
[1756029923602,1.3254,4773.9,4773.8,1.31497539]
[1756029923996,1.3254,4773.9,4773.8,1.66747539]
[1756029924202,1.3254,4773.9,4773.8,1.7276]
[1756029924498,1.3254,4773.9,4773.8,1.4924]
[1756029924700,1.3254,4773.9,4773.8,1.292]
[1756029925099,1.3254,4773.9,4773.8,1.1399]
[1756029925295,1.3254,4773.9,4773.8,1.292]
[1756029925495,1.3254,4773.9,4773.8,1.7276]
[1756029927490,0.9977,4773.9,4773.8,1.7276]
[1756029927694,1.0867,4774.2,4774.1,1.72757]
[1756029927895,2.00745067,4774.2,4774.1,1.72757]
[1756029928503,1.67975067,4774.2,4774.1,1.72757]
[1756029928702,2.00745067,4774.2,4774.1,1.72757]
[1756029929395,2.00745067,4774.2,4774.1,1.29197]
[1756029929796,2.00745067,4774.2,4774.1,1.72787]
[1756029930605,0.68205067,4774.2,4774.1,1.72787]
[1756029930806,1.3254,4774.7,4774.6,1.72783]
[1756029930995,2.0073923,4774.7,4774.6,1.72783]
[1756029931195,2.0073923,4774.7,4774.6,1.49263]
[1756029931398,2.0073923,4774.7,4774.6,1.29193]
[1756029931907,1.4409923,4774.7,4774.6,1.72783]
[1756029932603,2.0073923,4774.7,4774.6,1.72783]
[1756029935711,2.0073923,4774.7,4774.6,0.79573]
[1756029936006,2.0073923,4774.7,4774.6,0.41903]
[1756029942214,2.0073923,4774.7,4774.6,1.13153]
[1756029944115,2.0073923,4774.7,4774.6,1.28343]
[1756029944316,2.0073923,4774.7,4774.6,1.48423]
[1756029944508,2.0073923,4774.7,4774.6,1.28343]
[1756029944709,2.0073923,4774.7,4774.6,1.13153]
[1756029946008,2.0073923,4774.7,4774.6,1.70793]
[1756029947618,1.4409923,4774.7,4774.6,1.70793]
[1756029947824,1.0662923,4774.7,4774.6,1.8832852]
[1756029948020,0.6819923,4774.7,4774.6,1.8832852]
[1756029948310,0.6819923,4774.7,4774.6,5.8832852]
[1756029952314,0.6819923,4774.7,4774.6,1.8832852]
[1756029952515,0.9963,4775.5,4775.4,0.65416]
[1756029952722,2.04424929,4775.5,4775.4,1.70786]
[1756029955709,1.44904929,4775.5,4775.4,1.70786]
[1756029955913,2.04424929,4775.5,4775.4,1.70786]
[1756029957520,2.04388785,4775.5,4775.4,1.70786]
[1756029958423,1.68318785,4775.5,4775.4,1.70786]
[1756029959014,2.04388785,4775.5,4775.4,1.70786]
[1756029960726,1.15918785,4775.5,4775.4,1.70786]
[1756029960914,1.882905,4777.1,4776.2,1.15139]
[1756029960915,0.7618,4776.3,4776.2,1.15139]